bitfinex/quotes_BTCUSD_20250205
["timestamp","ask_amount","ask_price","bid_price","bid_amount"]
[1738767952498,0.153119,97963.0,97942.0,0.00102073]
[1738767952702,0.09008373,97964.0,97963.0,0.00513553]
[1738767952918,0.09008373,97964.0,97958.0,0.153126]
[1738767953127,0.09008373,97964.0,97963.0,0.00513553]
[1738767953354,0.09008373,97964.0,97963.0,0.25562265]
[1738767953688,0.09022415,97964.0,97963.0,0.26104151]
[1738767955562,0.08937164,97964.0,97963.0,0.55994151]
[1738767955992,0.00014042,97964.0,97963.0,0.55994151]
[1738767956410,0.00014042,97964.0,97963.0,0.56994151]
[1738767956631,0.00014042,97964.0,97963.0,0.55994151]
[1738767957840,0.00014042,97964.0,97963.0,0.56994151]
[1738767957973,0.00014042,97964.0,97963.0,0.55994151]
[1738767958264,0.00014042,97964.0,97963.0,0.26104151]
[1738767958973,0.00014042,97964.0,97963.0,0.10792251]
[1738767959216,0.00014042,97964.0,97963.0,0.00541886]
[1738767959717,0.00014042,97964.0,97963.0,0.10250365]
[1738767959963,0.00014042,97964.0,97963.0,0.10787189]
[1738767960203,0.00014042,97964.0,97963.0,0.10889245]
[1738767960406,0.00014042,97964.0,97963.0,0.10889242]
[1738767960831,0.00014042,97964.0,97963.0,0.10787189]
[1738767961782,0.00014042,97964.0,97963.0,0.10889247]
[1738767962000,0.00014042,97964.0,97963.0,0.10787189]
[1738767962425,0.00014042,97964.0,97963.0,0.26201146]
[1738767962630,0.00014042,97964.0,97963.0,0.26099089]
[1738767963088,0.00014042,97964.0,97963.0,0.00536824]
[1738767963314,0.00014042,97964.0,97961.0,0.15312]
[1738767963514,0.00014042,97964.0,97963.0,0.00532835]
[1738767963918,0.00014042,97964.0,97957.0,0.153128]
[1738767964119,0.00014042,97964.0,97963.0,0.00533247]
[1738767964312,0.00014042,97964.0,97960.0,0.153123]
[1738767964518,0.00014042,97964.0,97963.0,0.0053346]
[1738767964847,0.00014042,97964.0,97963.0,0.10352434]
[1738767965052,0.00014042,97964.0,97963.0,0.26096179]
[1738767965676,0.15325742,97964.0,97963.0,0.00533914]
[1738767966120,0.00014042,97964.0,97929.0,0.204229]
[1738767966319,0.153125,97959.0,97951.0,0.23390247]
[1738767966541,0.00014042,97964.0,97952.0,0.10352447]
[1738767966760,0.00014042,97964.0,97963.0,0.153119]
[1738767967003,0.00036533,97964.0,97963.0,0.25562265]
[1738767968414,0.00036533,97964.0,97963.0,0.26096179]
[1738767969411,0.00036533,97964.0,97963.0,0.28396179]
[1738767969691,3.3e-07,97964.0,97963.0,1.47523491]
[1738767969966,3.3e-07,97964.0,97963.0,2.01163491]
[1738767970222,3.3e-07,97964.0,97963.0,1.96471092]
[1738767970498,3.3e-07,97964.0,97963.0,2.00163491]
[1738767970753,3.3e-07,97964.0,97963.0,2.01163491]
[1738767971503,3.3e-07,97964.0,97963.0,2.01988793]
[1738767971720,3.3e-07,97964.0,97963.0,2.01163491]
[1738767972627,0.00022512,98002.0,97992.0,0.153073]
[1738767972838,0.00022512,98002.0,97992.0,1.27684977]
[1738767973128,0.00022512,98002.0,97992.0,1.28237745]
[1738767974441,2.4e-07,98002.0,98001.0,0.153059]
[1738767974655,0.00022471,98008.0,98007.0,0.31305]
[1738767974656,7.1e-07,98008.0,98007.0,0.31305]
[1738767974868,7.1e-07,98008.0,98007.0,1.44682677]
[1738767975082,0.00046889,98008.0,98007.0,1.43682677]
[1738767975303,0.00046889,98008.0,98007.0,1.45226814]
[1738767975514,0.00046889,98008.0,98007.0,1.43226814]
[1738767975739,0.00046889,98008.0,98007.0,1.45226814]
[1738767975948,0.00046889,98008.0,98007.0,1.44226814]
[1738767976168,0.00046889,98008.0,98007.0,1.45226814]
[1738767976387,8.9e-07,98008.0,98007.0,2.02831063]
[1738767976607,8.9e-07,98008.0,98007.0,2.01166814]
[1738767977058,8.9e-07,98008.0,98007.0,1.98866814]
[1738767977542,8.9e-07,98008.0,98007.0,1.81866814]
[1738767978021,8.9e-07,98008.0,98007.0,1.66561814]
[1738767978246,8.9e-07,98008.0,98007.0,0.10794502]
[1738767978464,8.9e-07,98008.0,98007.0,0.10896519]
[1738767978953,8.9e-07,98008.0,98007.0,1.13023831]
[1738767979184,0.00022517,98008.0,98007.0,0.10794502]
[1738767979658,0.00022517,98008.0,98007.0,0.26099502]
[1738767980107,0.00022517,98008.0,98007.0,0.10794502]
[1738767980551,0.00022517,98008.0,97982.0,0.02041604]
[1738767980799,0.00022517,98008.0,97984.0,0.10250365]
[1738767981017,0.204089,97997.0,97984.0,0.10250365]
[1738767981234,0.16782664,98000.0,97984.0,0.10250365]
[1738767981464,0.00022517,98008.0,97984.0,0.10250365]
[1738767981686,0.20412,97982.0,97963.0,0.2042638]
[1738767981912,0.16782664,97973.0,97964.0,0.10250365]
[1738767982133,0.16782664,97973.0,97963.0,0.0001068]
[1738767982134,0.153117,97964.0,97963.0,0.0001068]
[1738767982567,0.303117,97964.0,97963.0,0.0001068]
[1738767982788,0.303117,97964.0,97925.0,0.28500347]
[1738767982789,0.15,97963.0,97925.0,0.08076647]
[1738767983009,0.151175,97927.0,97926.0,0.19280494]
[1738767983249,0.151175,97927.0,97926.0,0.09030129]
[1738767983472,0.204222,97933.0,97926.0,0.09030129]
[1738767983689,0.153175,97928.0,97926.0,0.09076858]
[1738767983909,0.24432664,97936.0,97926.0,0.09076858]
[1738767984148,0.15317,97931.0,97927.0,0.00470548]
[1738767984359,0.0451,97943.0,97926.0,0.09076858]
[1738767984360,0.0451,97943.0,97928.0,0.10352474]
[1738767984587,0.16782664,97940.0,97929.0,0.00102099]
[1738767984808,0.153169,97931.0,97929.0,0.10250365]
[1738767985020,0.25921636,97940.0,97926.0,0.00046729]
[1738767985260,0.0451,97943.0,97930.0,0.00478553]
[1738767985485,0.153159,97938.0,97931.0,0.10250365]
[1738767985694,0.153153,97941.0,97931.0,0.10731235]
[1738767985905,0.0451,97943.0,97931.0,0.10731235]
[1738767986119,0.153153,97941.0,97934.0,0.153163]
[1738767986339,0.153153,97941.0,97935.0,0.10250365]
[1738767986555,0.0451,97943.0,97935.0,0.1073003]
[1738767986982,0.153154,97941.0,97935.0,0.1073003]
[1738767987201,0.0751,97950.0,97935.0,0.1073003]
[1738767987202,0.204168,97959.0,97936.0,0.00102098]
[1738767987420,0.20416,97962.0,97937.0,0.10250365]
[1738767987641,0.0477,97963.0,97938.0,0.00102083]
[1738767987865,0.0809,97965.0,97938.0,0.00102083]
[1738767987866,0.0809,97965.0,97940.0,0.204206]
[1738767988075,0.0809,97965.0,97941.0,0.10250365]
[1738767988352,0.204174,97956.0,97941.0,0.10730855]
[1738767988568,0.25921636,97960.0,97941.0,0.10730855]
[1738767988787,0.153151,97943.0,97941.0,0.0048049]
[1738767989213,0.15,97956.0,97926.0,0.00046729]
[1738767989428,0.25921636,97960.0,97927.0,0.10250365]
[1738767989645,0.15314,97950.0,97928.0,0.00102092]
[1738767989883,0.25921636,97970.0,97929.0,0.10352457]
[1738767990100,0.153142,97948.0,97939.0,0.153155]
[1738767990326,0.0809,97965.0,97946.0,0.153145]
[1738767990583,0.153113,97967.0,97958.0,0.153126]
[1738767990800,0.153123,97961.0,97952.0,0.153135]
[1738767991013,0.153121,97962.0,97959.0,0.0050839]
[1738767991204,0.204145,97970.0,97958.0,0.153126]
[1738767991421,0.25921636,97970.0,97960.0,0.0050277]
[1738767991647,0.153123,97961.0,97959.0,0.00504577]
[1738767991862,0.15313,97956.0,97953.0,0.10250365]
[1738767992129,0.0823,97982.0,97960.0,0.00502247]
[1738767992130,0.153122,97961.0,97960.0,0.00502247]
[1738767992338,0.153133,97954.0,97953.0,0.00046729]
[1738767992547,0.384333,97954.0,97953.0,0.00046729]
[1738767993022,0.445243,97954.0,97953.0,0.00046729]
[1738767993227,0.53443665,97954.0,97953.0,0.00046729]
[1738767993462,0.30315,97943.0,97942.0,0.0001068]
[1738767993874,0.30315,97943.0,97942.0,0.00024722]
[1738767995145,0.25921636,97929.0,97908.0,0.08076647]
[1738767995356,0.153203,97909.0,97908.0,0.08076647]
[1738767995777,0.153219,97899.0,97896.0,0.0809064]
[1738767996011,0.25921636,97919.0,97896.0,0.00013993]
[1738767996012,0.153222,97898.0,97896.0,0.00013993]
[1738767997503,0.0497,97897.0,97896.0,0.00013993]
[1738767998151,0.153222,97898.0,97896.0,0.00013993]
[1738767999406,0.25250365,97897.0,97896.0,0.00013993]
[1738767999643,0.27550365,97897.0,97896.0,0.00013993]
[1738767999856,0.40040365,97897.0,97896.0,0.00013993]
[1738768000327,0.41895918,97897.0,97896.0,0.00013993]
[1738768000824,0.39595918,97897.0,97896.0,0.00013993]
[1738768001281,0.42564803,97897.0,97896.0,0.00013993]
[1738768001536,0.54949838,97897.0,97896.0,0.00013993]
[1738768002692,0.44864803,97897.0,97896.0,0.00013993]
[1738768003157,0.44864803,97897.0,97871.0,0.0004]
[1738768003158,0.303261,97872.0,97871.0,0.0004]
[1738768003390,0.173,97871.0,97870.0,0.00438134]
[1738768003652,0.27550365,97871.0,97870.0,0.00438134]
[1738768004617,0.30327,97866.0,97865.0,0.0001068]
[1738768004821,0.47467365,97866.0,97865.0,0.0001068]
[1738768005733,0.48467365,97866.0,97865.0,0.0001068]
[1738768005947,0.303289,97854.0,97853.0,0.0018479]
[1738768006158,0.42879265,97854.0,97853.0,0.0018479]
[1738768006370,0.47703703,97854.0,97853.0,0.0018479]
[1738768006848,0.045,97831.0,97806.0,0.0071755]
[1738768007104,0.153352,97814.0,97806.0,0.0071755]
[1738768007364,0.48865565,97814.0,97813.0,0.00452574]
[1738768007576,0.48865565,97814.0,97779.0,0.000319]
[1738768007577,0.153405,97780.0,97779.0,0.000319]
[1738768007791,0.303405,97780.0,97779.0,0.000319]
[1738768008010,0.153393,97788.0,97779.0,0.000319]
[1738768008225,0.02903691,97800.0,97779.0,0.000319]
[1738768008226,0.204502,97799.0,97779.0,0.000319]
[1738768008458,1.55824438,97813.0,97779.0,0.000319]
[1738768008459,0.04824438,97813.0,97788.0,0.08076647]
[1738768008686,0.04824438,97813.0,97797.0,0.153378]
[1738768008899,0.25921636,97800.0,97781.0,0.204538]
[1738768009116,0.25921636,97800.0,97784.0,0.153397]
[1738768009345,0.153383,97794.0,97779.0,0.00078698]
[1738768009557,0.25921636,97789.0,97779.0,0.00078698]
[1738768009770,0.153402,97783.0,97779.0,0.00078698]
[1738768009986,0.204529,97786.0,97779.0,0.00078698]
[1738768010199,0.25921636,97789.0,97779.0,0.00078698]
[1738768010416,0.06101059,97782.0,97779.0,0.00078698]
[1738768010625,0.21441359,97782.0,97779.0,0.00078698]
[1738768010842,0.06101059,97782.0,97779.0,0.00078698]
[1738768011064,0.303405,97780.0,97779.0,0.00078698]
[1738768011523,0.40590865,97780.0,97779.0,0.00078698]
[1738768011764,0.15,97780.0,97779.0,0.00078698]
[1738768011968,0.06101059,97781.0,97779.0,0.00078698]
[1738768012650,0.06101059,97780.0,97779.0,0.00078698]
[1738768013297,0.06101059,97780.0,97779.0,0.25669763]
[1738768014469,0.06101059,97780.0,97779.0,0.10329063]
[1738768014896,0.01855553,97780.0,97779.0,0.10329063]
[1738768015349,0.01855553,97780.0,97779.0,0.10431314]
[1738768016073,0.01855553,97780.0,97779.0,0.10329063]
[1738768016504,0.01276621,97809.0,97799.0,0.153375]
[1738768016760,0.153371,97802.0,97799.0,0.10250365]
[1738768016980,0.01276621,97809.0,97799.0,0.10250365]
[1738768017244,0.01276621,97809.0,97780.0,0.08076647]
[1738768017245,0.06084459,97808.0,97781.0,0.00102239]
[1738768017498,0.204506,97797.0,97782.0,0.10250365]
[1738768017763,0.25921636,97792.0,97779.0,0.00089388]
[1738768018003,0.25921636,97792.0,97780.0,0.10352623]
[1738768018224,0.04807838,97791.0,97780.0,0.10352623]
[1738768018457,0.04807838,97791.0,97780.0,0.10250365]
[1738768018909,0.04807838,97791.0,97780.0,0.25590865]
[1738768019160,0.04807838,97791.0,97782.0,0.153401]
[1738768019377,0.04807838,97791.0,97780.0,0.10250365]
[1738768019627,0.04807838,97790.0,97783.0,0.153399]
[1738768020131,0.04807838,97790.0,97780.0,0.10250365]
[1738768020544,0.04807838,97790.0,97781.0,0.153403]
[1738768020761,0.04807838,97790.0,97781.0,0.10250365]
[1738768020993,0.01849168,97789.0,97781.0,0.10250365]
[1738768021435,0.01849168,97789.0,97779.0,0.15429888]
[1738768021436,0.153405,97780.0,97779.0,0.00089388]
[1738768021860,0.17189668,97780.0,97779.0,0.00089388]
[1738768022286,0.01849168,97780.0,97779.0,0.00089388]
[1738768022918,0.204518,97791.0,97779.0,0.00089388]
[1738768022919,0.204513,97793.0,97779.0,0.00089388]
[1738768023137,0.204514,97793.0,97779.0,0.00089388]
[1738768023357,0.153399,97785.0,97779.0,0.00089388]
[1738768023571,0.15,97796.0,97779.0,0.00089388]
[1738768023814,0.153404,97781.0,97779.0,0.00089388]
[1738768024062,0.41961365,97780.0,97779.0,0.00089388]
[1738768024486,1.91961365,97780.0,97779.0,0.00089388]
[1738768024697,2.01961365,97780.0,97779.0,0.00089388]
[1738768024919,2.17301865,97780.0,97779.0,0.00089388]
[1738768025412,0.303408,97778.0,97777.0,0.00077]
[1738768026408,0.46682165,97778.0,97777.0,0.00077]
[1738768026715,0.52776642,97778.0,97777.0,0.00077]
[1738768026988,0.55076642,97778.0,97777.0,0.00077]
[1738768027243,0.21435277,97778.0,97777.0,0.00077]
[1738768027907,0.06094477,97778.0,97777.0,0.00077]
[1738768028118,0.06094477,97778.0,97777.0,0.25668365]
[1738768028773,0.10046798,97780.0,97779.0,0.153407]
[1738768028991,0.10046798,97780.0,97779.0,0.26693307]
[1738768029204,0.10046798,97780.0,97779.0,1.28718377]
[1738768029431,0.0295867,97811.0,97810.0,0.153358]
[1738768029653,0.0295867,97811.0,97810.0,0.25586165]
[1738768029654,0.0297271,97811.0,97810.0,0.25586165]
[1738768030077,0.0297271,97811.0,97810.0,0.26586165]
[1738768030078,4e-07,97811.0,97810.0,0.26586165]
[1738768030337,0.17023923,97842.0,97813.0,0.01]
[1738768030551,0.17023923,97842.0,97841.0,0.153309]
[1738768030763,0.17023923,97842.0,97814.0,0.31772595]
[1738768030764,0.1703796,97842.0,97816.0,0.204463]
[1738768030984,0.1703796,97842.0,97817.0,0.10352569]
[1738768030985,0.08961313,97842.0,97817.0,0.10352569]
[1738768031194,0.08961313,97842.0,97841.0,0.153309]
[1738768031403,0.08961313,97842.0,97841.0,0.25581265]
[1738768031654,0.08961313,97842.0,97841.0,0.10250365]
[1738768031864,0.08961313,97842.0,97796.0,0.15]
[1738768032079,0.08961313,97842.0,97831.0,0.153324]
[1738768032080,0.153309,97841.0,97831.0,0.153324]
[1738768032292,0.153309,97841.0,97812.0,0.10250365]
[1738768032293,0.08961313,97842.0,97824.0,0.153335]
[1738768032500,0.204413,97841.0,97827.0,0.204441]
[1738768032709,0.204413,97841.0,97828.0,0.10250365]
[1738768032949,0.08961313,97842.0,97828.0,0.10250365]
[1738768033168,0.08961313,97842.0,97841.0,0.153309]
[1738768033388,0.08961313,97842.0,97841.0,0.25581265]
[1738768034532,8.3e-07,97842.0,97841.0,0.42581265]
[1738768034744,0.08076647,97886.0,97885.0,0.153241]
[1738768034947,0.08076647,97886.0,97885.0,0.25574465]
[1738768035164,0.0004681,97886.0,97885.0,0.25574465]
[1738768036464,0.0004681,97886.0,97885.0,0.10250365]
[1738768036676,0.0004681,97886.0,97884.0,0.153241]
[1738768036902,0.0004681,97886.0,97885.0,0.1035251]
[1738768037327,0.0004681,97886.0,97885.0,0.10250365]
[1738768037540,0.0004681,97886.0,97858.0,0.204377]
[1738768037765,0.0004681,97886.0,97872.0,0.15326]
[1738768037984,0.0004681,97886.0,97873.0,0.10352521]
[1738768038197,0.0004681,97886.0,97885.0,0.153241]
[1738768038414,0.0004681,97886.0,97885.0,0.10250365]
[1738768038635,0.0004681,97886.0,97844.0,1.02127312]
[1738768038848,0.0004681,97886.0,97865.0,0.153271]
[1738768039074,0.25921636,97875.0,97852.0,0.10250365]
[1738768039359,0.204371,97861.0,97834.0,0.15332]
[1738768039614,1.5,97866.0,97821.0,1.02127312]
[1738768039615,0.153316,97837.0,97835.0,0.10250365]
[1738768039848,0.25921636,97860.0,97835.0,0.10250365]
[1738768040089,0.153316,97837.0,97835.0,0.10250365]
[1738768040326,0.15,97859.0,97811.0,0.153356]
[1738768040327,0.357696,97848.0,97811.0,0.153356]
[1738768040562,0.15,97840.0,97812.0,0.25585665]
[1738768040806,0.204461,97818.0,97812.0,0.10250365]
[1738768041021,0.15,97829.0,97786.0,0.204526]
[1738768041234,0.15,97829.0,97777.0,0.000877]
[1738768041235,0.153363,97807.0,97806.0,0.00014037]
[1738768042148,0.204438,97829.0,97806.0,0.10264402]
[1738768042359,0.25921636,97840.0,97807.0,0.10352596]
[1738768042568,0.153333,97827.0,97808.0,0.153361]
[1738768042826,0.153303,97845.0,97821.0,0.15334]
[1738768043073,0.06132,97845.0,97822.0,0.10352578]
[1738768043300,0.08076647,97859.0,97822.0,0.10352578]
[1738768043554,0.08076647,97859.0,97823.0,0.20445]
[1738768043770,0.08076647,97859.0,97824.0,0.10352558]
[1738768043998,0.08076647,97859.0,97826.0,0.10250365]
[1738768044247,0.204428,97834.0,97826.0,0.10250365]
[1738768044504,0.1533,97848.0,97827.0,0.0010221]
[1738768044739,0.0478,97875.0,97828.0,0.10250365]
[1738768044990,0.204352,97870.0,97830.0,0.204436]
[1738768045239,0.15,97869.0,97831.0,0.10352553]
[1738768045486,0.204352,97870.0,97843.0,0.204407]
[1738768045732,0.0478,97875.0,97844.0,0.10352551]
[1738768045971,0.20453371,97891.0,97852.0,0.10250365]
[1738768045972,0.00022471,97886.0,97852.0,0.10250365]
[1738768046215,0.00022471,97886.0,97875.0,0.20434]
[1738768046463,0.25921636,97885.0,97876.0,0.1035252]
[1738768046720,0.25921636,97885.0,97877.0,0.00102156]
[1738768046963,0.25921636,97885.0,97878.0,0.10250365]
[1738768047205,0.25921636,97885.0,97866.0,0.20436]
[1738768047461,0.25921636,97885.0,97867.0,0.10250365]
[1738768047879,0.25921636,97885.0,97871.0,0.20435]
[1738768048100,0.25921636,97885.0,97875.0,0.20434]
[1738768048307,0.25921636,97885.0,97876.0,0.10250365]
[1738768048511,0.25921636,97885.0,97881.0,0.153246]
[1738768048721,0.25921636,97885.0,97876.0,0.10250365]
[1738768048929,0.25921636,97885.0,97882.0,0.10250365]
[1738768049134,0.25921636,97885.0,97877.0,0.10250365]
[1738768049349,0.204323,97884.0,97850.0,1.02127312]
[1738768049655,0.25921636,97860.0,97852.0,0.20439]
[1738768049694,0.25921636,97860.0,97832.0,0.08076647]
[1738768049695,0.153291,97853.0,97833.0,0.204429]
[1738768049890,0.0481,97873.0,97832.0,0.08076647]
[1738768049891,0.153309,97841.0,97834.0,0.10250365]
[1738768050181,0.25921636,97842.0,97808.0,0.204482]
[1738768050340,0.25921636,97842.0,97818.0,0.10250365]
[1738768050514,1.5,97852.0,97820.0,0.153341]
[1738768050515,0.25921636,97828.0,97820.0,0.153341]
[1738768050716,0.25921636,97828.0,97821.0,0.10250365]
[1738768050914,0.25921636,97828.0,97821.0,0.25584265]
[1738768051119,0.204416,97840.0,97821.0,0.10250365]
[1738768051120,0.25921636,97840.0,97821.0,0.10250365]
[1738768051321,0.25921636,97850.0,97822.0,0.00102213]
[1738768051554,0.204417,97839.0,97824.0,0.153336]
[1738768051753,0.204419,97838.0,97825.0,0.10250365]
[1738768051952,0.204421,97837.0,97826.0,0.153332]
[1738768052164,0.25921636,97840.0,97827.0,0.10250365]
[1738768052316,0.25921636,97840.0,97827.0,0.10828021]
[1738768052317,0.153314,97838.0,97827.0,0.10828021]
[1738768052526,0.25921636,97840.0,97827.0,0.10725815]
[1738768052775,0.153324,97832.0,97827.0,0.10725815]
[1738768053023,0.25921636,97840.0,97827.0,0.10725815]
[1738768053024,0.153329,97829.0,97827.0,0.0047545]
[1738768053224,0.25921636,97840.0,97819.0,0.00014037]
[1738768053453,0.25921636,97830.0,97820.0,0.10250365]
[1738768053656,0.41254436,97830.0,97821.0,0.10250365]
[1738768053861,0.25921636,97830.0,97821.0,0.10725614]
[1738768054226,0.25921636,97830.0,97823.0,0.153337]
[1738768054431,0.25921636,97830.0,97828.0,0.153329]
[1738768054634,0.25921636,97830.0,97829.0,0.00473638]
[1738768054838,0.25921636,97830.0,97824.0,0.10250365]
[1738768054981,1.704366,97864.0,97830.0,0.204436]
[1738768054982,0.25921636,97840.0,97830.0,0.204436]
[1738768055185,0.25921636,97840.0,97831.0,0.10725614]
[1738768055596,0.25921636,97850.0,97837.0,0.153315]
[1738768055799,0.25921636,97860.0,97838.0,0.10825204]
[1738768056017,0.08076647,97867.0,97857.0,0.153283]
[1738768056188,0.08076647,97867.0,97858.0,0.10716671]
[1738768056389,0.08076647,97867.0,97826.0,1.02127312]
[1738768056590,0.25921636,97848.0,97830.0,0.10250365]
[1738768056816,0.25921636,97860.0,97852.0,0.153292]
[1738768057017,0.41249636,97860.0,97853.0,0.10719276]
[1738768057278,0.25921636,97860.0,97853.0,0.10719276]
[1738768057875,0.25921636,97870.0,97854.0,0.00102182]
[1738768058106,0.00014035,97874.0,97853.0,0.10719276]
[1738768058107,0.00014035,97874.0,97855.0,0.10352539]
[1738768058361,0.153263,97871.0,97863.0,0.153275]
[1738768058583,0.00014035,97874.0,97864.0,0.10715309]
[1738768058791,0.00014035,97874.0,97865.0,0.00102166]
[1738768058792,0.153262,97872.0,97865.0,0.00102166]
[1738768058996,0.153259,97873.0,97866.0,0.10715108]
[1738768059340,0.00014035,97874.0,97872.0,0.153261]
[1738768059548,0.00014035,97874.0,97873.0,0.10250365]
[1738768059749,0.00014035,97874.0,97873.0,0.10714102]
[1738768059977,0.00014035,97874.0,97873.0,0.26040002]
[1738768060184,0.00014035,97874.0,97873.0,0.10714102]
[1738768061247,0.00014035,97874.0,97873.0,0.10250365]
[1738768061453,0.00014035,97874.0,97873.0,0.10722935]
[1738768061663,0.00014035,97874.0,97873.0,0.0047257]
[1738768062080,0.00014035,97874.0,97868.0,0.153266]
[1738768062261,0.00014035,97874.0,97873.0,0.0047257]
[1738768062513,0.00014035,97874.0,97869.0,0.10250365]
[1738768062514,0.204346,97873.0,97869.0,0.10250365]
[1738768062746,0.00014035,97874.0,97869.0,0.10250365]
[1738768062954,0.00014035,97874.0,97870.0,0.00472973]
[1738768063165,0.00014035,97874.0,97871.0,0.10250365]
[1738768063580,0.00014035,97874.0,97872.0,0.00472772]
[1738768063789,0.00014035,97874.0,97872.0,0.10723137]
[1738768063997,0.00014035,97874.0,97873.0,0.25576265]
[1738768064417,0.00014035,97874.0,97873.0,0.26041947]
[1738768067187,6e-08,97886.0,97878.0,0.01]
[1738768067400,0.00046778,97886.0,97885.0,0.25574465]
[1738768067606,7.8e-07,97886.0,97885.0,0.26033685]
[1738768067817,4.9e-07,97891.0,97890.0,0.163233]
[1738768068021,0.01871497,97929.0,97928.0,0.153173]
[1738768068237,0.01871497,97929.0,97928.0,1.28151486]
[1738768068238,0.01885525,97929.0,97928.0,1.28151486]
[1738768068876,0.00014028,97929.0,97928.0,1.29151486]
[1738768069698,0.00014028,97929.0,97928.0,1.29367191]
[1738768069954,0.00014028,97929.0,97928.0,1.28694977]
[1738768070154,0.00014028,97929.0,97928.0,1.27694977]
[1738768070979,0.00014028,97929.0,97928.0,1.28694977]
[1738768071188,0.00014028,97929.0,97928.0,1.44994977]
[1738768071399,0.00014028,97929.0,97928.0,1.42694977]
[1738768071605,0.00014028,97929.0,97928.0,1.27694977]
[1738768074046,2.8e-07,97929.0,97928.0,1.45994977]
[1738768074245,2.8e-07,97929.0,97928.0,1.46994977]
[1738768074450,2.8e-07,97929.0,97928.0,1.45994977]
[1738768074651,2.8e-07,97929.0,97928.0,1.46994977]
[1738768074857,2.8e-07,97929.0,97928.0,1.44602909]
[1738768075710,2.8e-07,97929.0,97928.0,1.47902909]
[1738768076121,9.9e-07,97940.0,97939.0,0.323156]
[1738768076352,9.9e-07,97940.0,97939.0,0.49545965]
[1738768076548,9.9e-07,97940.0,97939.0,1.03185965]
[1738768076958,9.9e-07,97940.0,97939.0,1.49673277]
[1738768077167,9.9e-07,97940.0,97939.0,1.47373277]
[1738768077371,9.9e-07,97940.0,97939.0,1.42693277]
[1738768078234,9.9e-07,97940.0,97939.0,1.27693277]
[1738768078870,9.9e-07,97940.0,97939.0,0.10250365]
[1738768079076,9.9e-07,97940.0,97900.0,1.02127312]
[1738768079281,9.9e-07,97940.0,97937.0,0.153159]
[1738768079497,9.9e-07,97940.0,97939.0,0.153156]
[1738768079695,9.9e-07,97940.0,97939.0,0.25668054]
[1738768079988,9.9e-07,97940.0,97939.0,0.25565965]
[1738768080687,9.9e-07,97940.0,97939.0,0.10250365]
[1738768081519,9.9e-07,97940.0,97939.0,0.25565965]
[1738768081723,9.9e-07,97940.0,97939.0,0.10250365]
[1738768081929,9.9e-07,97940.0,97939.0,0.25565965]
[1738768084686,9.9e-07,97940.0,97939.0,1.27693277]
[1738768084906,9.9e-07,97940.0,97939.0,1.28693277]
[1738768085137,9.9e-07,97955.0,97951.0,0.01]
[1738768085344,0.00022471,97984.0,97951.0,0.01]
[1738768085345,4.9e-07,97958.0,97954.0,0.10250365]
[1738768085551,4.9e-07,97958.0,97953.0,0.204177]
[1738768085552,4.9e-07,97958.0,97957.0,0.41563165]
[1738768085762,4.9e-07,97958.0,97957.0,0.44863165]
[1738768085976,0.00022471,97984.0,97971.0,0.163106]
[1738768086182,0.00036473,97972.0,97971.0,1.287903]
[1738768086386,0.00036473,97972.0,97971.0,1.30988277]
[1738768086598,7.3e-07,97972.0,97971.0,1.45988277]
[1738768086809,7.3e-07,97972.0,97971.0,1.99628277]
[1738768087017,0.00022471,97984.0,97983.0,0.153087]
[1738768087228,0.00069197,97984.0,97983.0,1.27788389]
[1738768087438,0.00069197,97984.0,97983.0,1.27686377]
[1738768089125,0.00021691,98018.0,98017.0,0.153034]
[1738768089339,0.00035703,98018.0,98017.0,0.25553765]
[1738768089749,0.00035703,98018.0,98017.0,0.10250365]
[1738768090575,0.153055,98004.0,97996.0,0.08076647]
[1738768090793,0.25921636,98008.0,97997.0,0.10250365]
[1738768091219,0.00035703,98018.0,98017.0,0.153034]
[1738768091432,0.00035703,98018.0,98017.0,0.25553765]
[1738768092120,0.00035703,98018.0,98017.0,0.10250365]
[1738768092341,0.15339003,98018.0,98017.0,0.10250365]
[1738768092552,0.00035703,98018.0,98017.0,0.10250365]
[1738768093199,0.00035703,98018.0,98017.0,0.25553765]
[1738768094501,0.00035703,98018.0,98017.0,0.10250365]
[1738768094738,0.15339003,98018.0,98017.0,0.10250365]
[1738768094952,0.204048,98016.0,97983.0,0.08076647]
[1738768095169,0.25921636,98010.0,98005.0,0.08076647]
[1738768095444,0.00035703,98018.0,98007.0,0.08076647]
[1738768095655,0.00035703,98018.0,98017.0,0.153034]
[1738768095863,0.00035703,98018.0,98017.0,0.154054]
[1738768096072,0.00035703,98018.0,98017.0,0.25655764]
[1738768096288,0.00035703,98018.0,98017.0,0.25553765]
[1738768097071,0.00035703,98018.0,98017.0,0.10250365]
[1738768097394,0.00035703,98018.0,98017.0,0.25553765]
[1738768097840,0.00035703,98018.0,98017.0,0.10250365]
[1738768098046,0.00035703,98018.0,98017.0,0.25553765]
[1738768098924,0.00035703,98018.0,98017.0,0.10250365]
[1738768100818,0.15339003,98018.0,98017.0,0.10250365]
[1738768101070,0.00035703,98018.0,98017.0,0.10250365]
[1738768101785,0.153048,98008.0,97965.0,0.153115]
[1738768102033,0.00035703,98018.0,97973.0,0.01]
[1738768102278,0.00035703,98018.0,97973.0,0.02050554]
[1738768102279,0.25921636,98000.0,97973.0,0.02050554]
[1738768102516,0.25921636,97990.0,97955.0,0.01]
[1738768102740,0.25921636,97990.0,97956.0,0.0415668]
[1738768102940,0.16794349,97990.0,97985.0,0.153083]
[1738768103193,0.16794349,98000.0,97992.0,0.153073]
[1738768103403,0.153047,98009.0,97994.0,0.15307]
[1738768103614,0.16794349,98002.0,97969.0,0.204146]
[1738768103816,0.16794349,98002.0,97990.0,0.204101]
[1738768104029,0.16794349,98002.0,97962.0,0.5364]
[1738768104242,0.16794349,98000.0,97966.0,0.00102037]
[1738768104466,0.16794349,98010.0,98006.0,0.15305]
[1738768104672,0.16794349,98020.0,98007.0,0.10352386]
[1738768104880,0.16794349,98020.0,98007.0,0.10250365]
[1738768105094,0.16794349,98020.0,98007.0,0.30656965]
[1738768105302,0.16794349,98020.0,98007.0,0.10250365]
[1738768105504,0.16794349,98020.0,98008.0,0.00102016]
[1738768105710,0.16794349,98020.0,98009.0,0.10250365]
[1738768106335,0.16794349,98020.0,98017.0,0.153034]
[1738768106544,0.00022428,98027.0,98017.0,0.25553765]
[1738768106752,0.00022428,98027.0,98017.0,0.10250365]
[1738768106753,0.15303,98020.0,98017.0,0.10250365]
[1738768106956,0.25895465,98027.0,98017.0,0.10250365]
[1738768107168,0.15339003,98018.0,98017.0,0.10250365]
[1738768107375,0.15339003,98018.0,98017.0,0.10200365]
[1738768107376,0.00035703,98018.0,98017.0,0.10200365]
[1738768107809,0.00035703,98018.0,98017.0,0.25503765]
[1738768108878,0.00035703,98018.0,98017.0,0.10200365]
[1738768109079,0.00035703,98018.0,98017.0,0.25503765]